lending/lending_fUSD_20240710
["ID","MTS","AMOUNT","RATE_DAILY","PERIOD"]
[331652930,1720605079126,-500.0,0.00013917,2]
[331652931,1720605079136,-500.0,0.00013917,2]
[331652932,1720605079146,-500.0,0.00013917,2]
[331652933,1720605079156,-500.0,0.00013917,2]
[331652934,1720605079165,-1217.13,0.00013917,2]
[331652935,1720605079174,-567.08,0.00013917,2]
[331652936,1720605079184,-500.0,0.00013917,2]
[331652937,1720605079193,-648.75,0.00013917,2]
[331652938,1720605079204,-500.0,0.00013917,2]
[331652939,1720605079213,-500.0,0.00013917,2]
[331652940,1720605079222,-557.61,0.00013917,2]
[331652941,1720605079232,-500.0,0.00013917,2]
[331652942,1720605079241,-598.3,0.00013917,2]
[331652943,1720605079251,-500.0,0.00013917,2]
[331652944,1720605079260,-500.0,0.00013917,2]
[331652945,1720605079270,-1036.77,0.00013917,2]
[331652946,1720605079280,-629.58,0.00013917,2]
[331652947,1720605079290,-1201.87,0.00013917,2]
[331652948,1720605079300,-1371.24,0.00013917,2]
[331652949,1720605079309,-500.0,0.00013917,2]
[331652950,1720605079319,-500.0,0.00013917,2]
[331652951,1720605079329,-500.0,0.00013917,2]
[331652952,1720605079338,-500.0,0.00013917,2]
[331652953,1720605079347,-150.0,0.00013923,2]
[331652954,1720605079357,-150.0,0.00013927,2]
[331652955,1720605079366,-150.0,0.00013936,2]
[331652956,1720605079375,-150.0,0.00013939,2]
[331652957,1720605079384,-150.0,0.00013955,2]
[331652958,1720605079394,-150.0,0.00013956,2]
[331652959,1720605079403,-183911.0,0.00013966,2]
[331652960,1720605079412,-151.0,0.00013966,2]
[331652961,1720605079422,-400.0,0.0001397,2]
[331652962,1720605079431,-488.16685693,0.0001397,2]
[331652963,1720605079440,-1000.0,0.0001397,2]
[331652964,1720605079450,-1000.0,0.0001397,2]
[331652965,1720605079460,-150.0,0.0001397,2]
[331652966,1720605079469,-809.57,0.00013972,2]
[331652967,1720605079479,-918.63,0.00013972,2]
[331652968,1720605079491,-500.0,0.00013972,2]
[331652969,1720605079501,-581.8,0.00013972,2]
[331652970,1720605079512,-500.0,0.00013972,2]
[331652971,1720605079521,-554.12,0.00013972,2]
[331652972,1720605079531,-568.67,0.00013972,2]
[331652973,1720605079541,-500.0,0.00013972,2]
[331652974,1720605079551,-532.07,0.00013972,2]
[331652975,1720605079560,-500.0,0.00013972,2]
[331652976,1720605079570,-500.0,0.00013972,2]
[331652977,1720605079579,-500.0,0.00013972,2]
[331652978,1720605079588,-500.0,0.00013972,2]
[331652979,1720605079597,-500.0,0.00013972,2]
[331652980,1720605079606,-500.0,0.00013972,2]
[331652981,1720605079615,-500.0,0.00013972,2]
[331652982,1720605079624,-500.0,0.00013972,2]
[331652983,1720605079633,-833.89,0.00013972,2]
[331652984,1720605079643,-500.0,0.00013972,2]
[331652985,1720605079652,-500.0,0.00013972,2]
[331652986,1720605079662,-500.0,0.00013972,2]
[331652987,1720605079671,-1090.92,0.00013972,2]
[331652988,1720605079681,-688.49,0.00013972,2]
[331652989,1720605079690,-500.0,0.00013972,2]
[331652990,1720605079699,-500.0,0.00013972,2]
[331652991,1720605079709,-500.0,0.00013972,2]
[331652992,1720605079718,-500.0,0.00013972,2]
[331652993,1720605079727,-500.0,0.00013972,2]
[331652994,1720605079736,-665.0,0.00013972,2]
[331652995,1720605079745,-909.27,0.00013972,2]
[331652996,1720605079754,-502.27,0.00013972,2]
[331652997,1720605079764,-730.97,0.00013972,2]
[331652998,1720605079774,-500.0,0.00013972,2]
[331652999,1720605079783,-712.04,0.00013972,2]
[331653000,1720605079792,-500.0,0.00013972,2]
[331653001,1720605079802,-500.0,0.00013972,2]
[331653002,1720605079811,-500.0,0.00013972,2]
[331653003,1720605079821,-500.0,0.00013972,2]
[331653004,1720605079830,-500.0,0.00013972,2]
[331653005,1720605079839,-500.0,0.00013972,2]
[331653006,1720605079849,-500.0,0.00013972,2]
[331653007,1720605079858,-500.0,0.00013972,2]
[331653008,1720605079868,-500.0,0.00013972,2]
[331653009,1720605079877,-1185.53,0.00013972,2]
[331653010,1720605079887,-500.0,0.00013972,2]
[331653011,1720605079896,-500.0,0.00013972,2]
[331653012,1720605079905,-500.0,0.00013972,2]
[331653013,1720605079915,-500.0,0.00013972,2]
[331653014,1720605079926,-500.0,0.00013972,2]
[331653015,1720605079935,-500.0,0.00013972,2]
[331653016,1720605079945,-500.0,0.00013972,2]
[331653017,1720605079955,-500.0,0.00013972,2]
[331653018,1720605079965,-500.0,0.00013972,2]
[331653019,1720605079974,-500.0,0.00013972,2]
[331653020,1720605079984,-500.0,0.00013972,2]
[331653021,1720605079994,-500.0,0.00013972,2]
[331653022,1720605080003,-500.0,0.00013972,2]
[331653023,1720605080014,-832.2,0.00013972,2]
[331653024,1720605080023,-500.0,0.00013972,2]
[331653025,1720605080032,-500.0,0.00013972,2]
[331653026,1720605080041,-500.0,0.00013972,2]
[331653027,1720605080050,-576.04,0.00013972,2]
[331653028,1720605080059,-511.82,0.00013972,2]
[331653029,1720605080069,-500.0,0.00013972,2]
[331653030,1720605080079,-500.0,0.00013972,2]
[331653031,1720605080088,-500.0,0.00013972,2]
[331653032,1720605080097,-728.14,0.00013972,2]
[331653033,1720605080107,-598.71,0.00013972,2]
[331653034,1720605080116,-500.0,0.00013972,2]
[331653035,1720605080204,-500.0,0.00013972,2]
[331653036,1720605080213,-815.92,0.00013972,2]
[331653037,1720605080222,-500.0,0.00013972,2]
[331653038,1720605080231,-500.0,0.00013972,2]
[331653039,1720605080240,-651.84,0.00013972,2]
[331653040,1720605080250,-906.4,0.00013972,2]
[331653041,1720605080261,-500.0,0.00013972,2]
[331653042,1720605080270,-500.0,0.00013972,2]
[331653043,1720605080279,-691.82,0.00013972,2]
[331653044,1720605080289,-500.0,0.00013972,2]
[331653045,1720605080299,-546.75897125,0.00013972,2]
[331653046,1720605080308,-500.0,0.00013972,2]
[331653047,1720605080317,-500.0,0.00013972,2]
[331653048,1720605080326,-500.0,0.00013972,2]
[331653049,1720605080335,-500.0,0.00013972,2]
[331653050,1720605080344,-500.0,0.00013972,2]
[331653051,1720605080353,-1619.05,0.00013972,2]
[331653052,1720605080362,-715.64,0.00013972,2]
[331653053,1720605080371,-347.20608366,0.00013972,2]
[331653054,1720605080380,-500.0,0.00013972,2]
[331653055,1720605080388,-707.83,0.00013972,2]
[331653056,1720605080397,-949.03,0.00013972,2]
[331653057,1720605080406,-1045.95,0.00013972,2]
[331653058,1720605080426,-500.0,0.00013972,2]
[331653059,1720605080436,-500.0,0.00013972,2]
[331653060,1720605080445,-500.0,0.00013972,2]
[331653061,1720605080455,-1120.3,0.00013972,2]
[331653062,1720605080464,-500.0,0.00013972,2]
[331653063,1720605080474,-597.53,0.00013972,2]
[331653064,1720605080483,-889.25,0.00013972,2]
[331653065,1720605080492,-725.03,0.00013972,2]
[331653066,1720605080503,-621.78,0.00013972,2]
[331653067,1720605080513,-565.94,0.00013972,2]
[331653068,1720605080523,-605.34,0.00013972,2]
[331653069,1720605080532,-500.0,0.00013972,2]
[331653070,1720605080542,-500.0,0.00013972,2]
[331653071,1720605080552,-500.0,0.00013972,2]
[331653072,1720605080561,-500.0,0.00013972,2]
[331653073,1720605080571,-650.88,0.00013972,2]
[331653074,1720605080580,-500.0,0.00013972,2]
[331653075,1720605080589,-260.84634172,0.00013972,2]
[331653076,1720605080600,-1256.77,0.00013972,2]
[331653077,1720605080610,-712.2,0.00013972,2]
[331653078,1720605080619,-592.34,0.00013972,2]
[331653079,1720605080628,-500.0,0.00013972,2]
[331653080,1720605080641,-500.0,0.00013972,2]
[331653081,1720605080651,-544.07,0.00013972,2]
[331653082,1720605080661,-500.0,0.00013972,2]
[331653083,1720605080670,-500.0,0.00013972,2]
[331653084,1720605080679,-709.17,0.00013972,2]
[331653085,1720605080688,-500.0,0.00013972,2]
[331653086,1720605080697,-691.8,0.00013972,2]
[331653087,1720605080707,-830.48,0.00013972,2]
[331653088,1720605080716,-500.0,0.00013972,2]
[331653089,1720605080725,-500.0,0.00013972,2]
[331653090,1720605080735,-500.0,0.00013972,2]
[331653091,1720605080744,-984.38,0.00013972,2]
[331653092,1720605080754,-380.96331119,0.00013972,2]
[331653093,1720605080764,-614.1,0.00013972,2]
[331653094,1720605080773,-514.15,0.00013972,2]
[331653095,1720605080782,-500.0,0.00013972,2]
[331653096,1720605080791,-880.24,0.00013972,2]
[331653097,1720605080801,-787.51,0.00013972,2]
[331653098,1720605080810,-690.8,0.00013972,2]
[331653099,1720605080819,-931.15,0.00013972,2]
[331653100,1720605080829,-500.73,0.00013972,2]
[331653101,1720605080838,-500.0,0.00013972,2]
[331653102,1720605080847,-715.81,0.00013972,2]
[331653103,1720605080857,-500.0,0.00013972,2]
[331653104,1720605080866,-500.0,0.00013972,2]
[331653105,1720605080876,-500.0,0.00013972,2]
[331653106,1720605080885,-500.0,0.00013972,2]
[331653107,1720605080894,-500.0,0.00013972,2]
[331653108,1720605080903,-500.0,0.00013972,2]
[331653109,1720605080912,-618.34,0.00013972,2]
[331653110,1720605080921,-500.0,0.00013972,2]
[331653111,1720605080931,-500.0,0.00013972,2]
[331653112,1720605080941,-683.27,0.00013972,2]
[331653113,1720605080951,-500.0,0.00013972,2]
[331653114,1720605080961,-940.28,0.00013972,2]
[331653115,1720605080971,-615.77,0.00013972,2]
[331653116,1720605080981,-500.0,0.00013972,2]
[331653117,1720605080990,-565.66,0.00013972,2]
[331653118,1720605080999,-500.0,0.00013972,2]
[331653119,1720605081008,-541.68,0.00013972,2]
[331653120,1720605081018,-500.0,0.00013972,2]
[331653121,1720605081028,-1138.52,0.00013972,2]
[331653122,1720605081037,-630.3,0.00013972,2]
[331653123,1720605081046,-500.0,0.00013972,2]
[331653124,1720605081055,-865.59,0.00013972,2]
[331653125,1720605081065,-500.0,0.00013972,2]
[331653126,1720605081074,-500.0,0.00013972,2]
[331653127,1720605081084,-525.91,0.00013972,2]
[331653128,1720605081094,-500.0,0.00013972,2]
[331653129,1720605081103,-757.04,0.00013972,2]
[331653130,1720605081113,-1016.5,0.00013972,2]
[331653131,1720605081123,-500.0,0.00013972,2]
[331653132,1720605081132,-629.98,0.00013972,2]
[331653133,1720605081142,-500.0,0.00013972,2]
[331653134,1720605081152,-1127.67,0.00013972,2]
[331653135,1720605081161,-500.0,0.00013972,2]
[331653136,1720605081170,-500.0,0.00013972,2]
[331653137,1720605081180,-688.55,0.00013972,2]
[331653138,1720605081190,-500.0,0.00013972,2]
[331653139,1720605081199,-889.17,0.00013972,2]
[331653140,1720605081208,-500.0,0.00013972,2]
[331653141,1720605081218,-853.5,0.00013972,2]
[331653142,1720605081228,-1661.49,0.00013972,2]
[331653143,1720605081238,-621.87,0.00013972,2]
[331653144,1720605081247,-969.44,0.00013972,2]
[331653145,1720605081256,-500.0,0.00013972,2]
[331653146,1720605081267,-500.0,0.00013972,2]
[331653147,1720605081277,-500.0,0.00013972,2]
[331653148,1720605081287,-706.97,0.00013972,2]
[331653149,1720605081297,-636.3,0.00013972,2]
[331653150,1720605081307,-500.0,0.00013972,2]
[331653151,1720605081316,-500.0,0.00013972,2]
[331653152,1720605081326,-500.0,0.00013972,2]
[331653153,1720605081335,-767.29,0.00013972,2]
[331653154,1720605081345,-562.0,0.00013972,2]
[331653155,1720605081355,-818.65,0.00013972,2]
[331653156,1720605081364,-636.74,0.00013972,2]
[331653157,1720605081374,-500.0,0.00013972,2]
[331653158,1720605081384,-850.97,0.00013972,2]
[331653159,1720605081394,-1162.05,0.00013972,2]
[331653160,1720605081403,-500.0,0.00013972,2]
[331653161,1720605081413,-591.32,0.00013972,2]
[331653162,1720605081422,-500.0,0.00013972,2]
[331653163,1720605081431,-500.0,0.00013972,2]
[331653164,1720605081440,-500.0,0.00013972,2]
[331653165,1720605081450,-538.09,0.00013972,2]
[331653166,1720605081459,-902.1,0.00013972,2]
[331653167,1720605081467,-868.99,0.00013972,2]
[331653168,1720605081476,-500.0,0.00013972,2]
[331653169,1720605081486,-766.75,0.00013972,2]
[331653170,1720605081496,-576.02,0.00013972,2]
[331653171,1720605081507,-500.0,0.00013972,2]
[331653172,1720605081519,-1193.48,0.00013972,2]
[331653173,1720605081529,-507.56,0.00013972,2]
[331653174,1720605081541,-500.0,0.00013972,2]
[331653175,1720605081551,-500.0,0.00013972,2]
[331653176,1720605081560,-842.22,0.00013972,2]
[331653177,1720605081569,-732.11,0.00013972,2]
[331653178,1720605081579,-500.0,0.00013972,2]
[331653179,1720605081588,-500.0,0.00013972,2]
[331653180,1720605081597,-1021.16,0.00013972,2]
[331653181,1720605081607,-2170.18,0.00013972,2]
[331653182,1720605081616,-592.5252134,0.00013972,2]
[331653183,1720605082089,-641.5647866,0.00013972,2]
[331653184,1720605082099,-642.04,0.00013972,2]
[331653185,1720605082109,-676.92,0.00013972,2]
[331653186,1720605082118,-500.0,0.00013972,2]
[331653187,1720605082127,-142.58165015,0.00013972,2]
[331653188,1720605082221,-357.41834985,0.00013972,2]
[331653189,1720605082230,-500.0,0.00013972,2]
[331653190,1720605082240,-1209.88,0.00013972,2]
[331653191,1720605082250,-752.3,0.00013972,2]
[331653192,1720605082260,-1202.0,0.00013972,2]
[331653193,1720605082270,-500.0,0.00013972,2]
[331653194,1720605082279,-171.84548389,0.00013972,2]
[331653195,1720605082288,-1565.99,0.00013972,2]
[331653196,1720605082297,-526.07846649,0.00013972,2]
[331653197,1720605082306,-500.0,0.00013972,2]
[331653198,1720605082315,-500.0,0.00013972,2]
[331653199,1720605082325,-500.0,0.00013972,2]
[331653200,1720605082334,-500.0,0.00013972,2]
[331653201,1720605082344,-500.0,0.00013972,2]
[331653202,1720605082353,-1474.53,0.00013972,2]
[331653203,1720605082363,-663.74,0.00013972,2]
[331653204,1720605082372,-913.86,0.00013972,2]
[331653205,1720605082382,-500.0,0.00013972,2]
[331653206,1720605082391,-745.7,0.00013972,2]
[331653207,1720605082401,-201.63051403,0.00013972,2]
[331653208,1720605082411,-500.0,0.00013972,2]
[331653209,1720605082420,-500.0,0.00013972,2]
[331653210,1720605082429,-867.31,0.00013972,2]
[331653211,1720605082438,-1340.01,0.00013972,2]
[331653212,1720605082447,-782.61,0.00013972,2]
[331653213,1720605082456,-804.29,0.00013972,2]
[331653214,1720605082465,-1436.94,0.00013972,2]
[331653215,1720605082474,-500.0,0.00013972,2]
[331653216,1720605082484,-500.0,0.00013972,2]
[331653217,1720605082494,-870.61,0.00013972,2]
[331653218,1720605082504,-1436.15,0.00013972,2]
[331653219,1720605082515,-500.0,0.00013972,2]
[331653220,1720605082525,-649.98,0.00013972,2]
[331653221,1720605082536,-500.0,0.00013972,2]
[331653222,1720605082546,-500.0,0.00013972,2]
[331653223,1720605082555,-500.0,0.00013972,2]
[331653224,1720605082564,-1443.66,0.00013972,2]
[331653225,1720605082574,-1092.49,0.00013972,2]
[331653226,1720605082583,-1671.66,0.00013972,2]
[331653227,1720605082592,-500.0,0.00013972,2]
[331653228,1720605082602,-1450.59,0.00013972,2]
[331653229,1720605082611,-500.0,0.00013972,2]
[331653230,1720605082620,-500.0,0.00013972,2]
[331653231,1720605082634,-813.67,0.00013972,2]
[331653232,1720605082643,-606.93,0.00013972,2]
[331653233,1720605082653,-500.0,0.00013972,2]
[331653234,1720605082662,-500.0,0.00013972,2]
[331653235,1720605082672,-394.80520094,0.00013972,2]
[331653236,1720605082681,-500.0,0.00013972,2]
[331653237,1720605082691,-1360.4,0.00013972,2]
[331653238,1720605082700,-871.89,0.00013972,2]
[331653239,1720605082710,-915.68,0.00013972,2]
[331653240,1720605082719,-500.0,0.00013972,2]
[331653241,1720605082729,-500.0,0.00013972,2]
[331653242,1720605082739,-500.0,0.00013972,2]
[331653243,1720605082749,-500.0,0.00013972,2]
[331653244,1720605082759,-500.0,0.00013972,2]
[331653245,1720605082770,-500.0,0.00013972,2]
[331653246,1720605082779,-500.0,0.00013972,2]
[331653247,1720605082788,-976.42,0.00013972,2]
[331653248,1720605082798,-500.0,0.00013972,2]
[331653249,1720605082808,-636.58,0.00013972,2]
[331653250,1720605082817,-500.0,0.00013972,2]
[331653251,1720605082827,-1002.05,0.00013972,2]
[331653252,1720605082837,-500.0,0.00013972,2]
[331653253,1720605082846,-500.0,0.00013972,2]
[331653254,1720605082856,-991.76,0.00013972,2]
[331653255,1720605082865,-500.0,0.00013972,2]
[331653256,1720605082875,-553.22,0.00013972,2]
[331653257,1720605082885,-562.34,0.00013972,2]
[331653258,1720605082895,-500.0,0.00013972,2]
[331653259,1720605082905,-500.0,0.00013972,2]
[331653260,1720605082915,-543.73,0.00013972,2]
[331653261,1720605082925,-500.0,0.00013972,2]
[331653262,1720605082935,-500.0,0.00013972,2]
[331653263,1720605082945,-616.17,0.00013972,2]
[331653264,1720605082954,-500.0,0.00013972,2]
[331653265,1720605082964,-500.0,0.00013972,2]
[331653266,1720605082973,-500.0,0.00013972,2]
[331653267,1720605082983,-1586.1,0.00013972,2]
[331653268,1720605082993,-1006.17,0.00013972,2]
[331653269,1720605083003,-500.0,0.00013972,2]
[331653270,1720605083012,-500.0,0.00013972,2]
[331653271,1720605083023,-500.0,0.00013972,2]
[331653272,1720605083033,-513.37,0.00013972,2]
[331653273,1720605083043,-701.68,0.00013972,2]
[331653274,1720605083054,-554.38,0.00013972,2]
[331653275,1720605083064,-1108.96,0.00013972,2]
[331653276,1720605083074,-500.0,0.00013972,2]
[331653277,1720605083084,-387.19478825,0.00013972,2]
[331653278,1720605083094,-500.0,0.00013972,2]
[331653279,1720605083104,-500.0,0.00013972,2]
[331653280,1720605083113,-1197.21,0.00013972,2]
[331653281,1720605083123,-521.59,0.00013972,2]
[331653282,1720605083133,-500.0,0.00013972,2]
[331653283,1720605083143,-303.30429435,0.00013972,2]
[331653284,1720605083161,-196.69570565,0.00013972,2]
[331653285,1720605083171,-125.68382384,0.00013972,2]
[331653286,1720605083184,-374.31617616,0.00013972,2]
[331653287,1720605083195,-206.08382384,0.00013972,2]
[331653288,1720605083451,-160.58690581,0.00013484,2]
[331653289,1720605083461,-575.06,0.00013698,2]
[331653290,1720605083471,-500.0,0.00013698,2]
[331653291,1720605083480,-204.07099419,0.00013753,2]
[331653292,1720605083492,-370.98900581,0.00013753,2]
[331653293,1720605083502,-118.18990648,0.00013753,2]
[331653294,1720605083515,-381.81009352,0.00013753,2]
[331653295,1720605083524,-575.06,0.00013808,2]
[331653296,1720605083536,-500.0,0.00013808,2]
[331653297,1720605083546,-575.06,0.00013863,2]
[331653298,1720605083556,-77.90598882,0.00013863,2]
[331653299,1720605083568,-422.09401118,0.00013863,2]
[331653300,1720605083579,-527.66907717,0.00013917,2]
[331653301,1720605083597,-11.58092283,0.00013917,2]
[331653302,1720605083607,-404.2,0.00013917,2]
[331653303,1720605083618,-575.06,0.00013917,2]
[331653304,1720605083628,-793.13617616,0.00013972,2]
[331653305,1720605083638,-500.0,0.00013972,2]
[331653306,1720605083647,-500.0,0.00013972,2]
[331653307,1720605083656,-500.0,0.00013972,2]
[331653308,1720605083666,-536.89,0.00013972,2]
[331653309,1720605083675,-500.0,0.00013972,2]
[331653310,1720605083685,-1000.0,0.00013972,2]
[331653311,1720605083695,-500.0,0.00013972,2]
[331653312,1720605083705,-500.0,0.00013972,2]
[331653313,1720605083715,-500.0,0.00013972,2]
[331653314,1720605083725,-500.0,0.00013972,2]
[331653315,1720605083735,-500.0,0.00013972,2]
[331653316,1720605083745,-792.38,0.00013972,2]
[331653317,1720605083754,-565.73,0.00013972,2]
[331653318,1720605083764,-471.64367216,0.00013972,2]
[331653319,1720605083775,-500.0,0.00013972,2]
[331653320,1720605083785,-528.91,0.00013972,2]
[331653321,1720605083796,-500.0,0.00013972,2]
[331653322,1720605083807,-374.06922885,0.00013972,2]
[331653323,1720605083821,-125.93077115,0.00013972,2]
[331653324,1720605083831,-455.42655016,0.00013972,2]
[331653325,1720605083843,-44.57344984,0.00013972,2]
[331653326,1720605083854,-500.0,0.00013972,2]
[331653327,1720605083864,-811.42655016,0.00013972,2]
[331653328,1720605084067,-150.01,0.00013499,2]
[331653329,1720605084078,-0.81344984,0.00013972,2]
[331653330,1720605084088,-500.0,0.00013972,2]
[331653331,1720605084098,-1231.83,0.00013972,2]
[331653332,1720605084107,-500.0,0.00013972,2]
[331653333,1720605084117,-500.0,0.00013972,2]
[331653334,1720605084127,-1674.57,0.00013972,2]
[331653335,1720605084136,-607.47,0.00013972,2]
[331653336,1720605084146,-500.0,0.00013972,2]
[331653337,1720605084156,-1279.24,0.00013972,2]
[331653338,1720605084165,-651.76,0.00013972,2]
[331653339,1720605084174,-1566.61,0.00013972,2]
[331653340,1720605084184,-604.38,0.00013972,2]
[331653341,1720605084194,-500.0,0.00013972,2]
[331653342,1720605084203,-571.14,0.00013972,2]
[331653343,1720605084212,-754.22,0.00013972,2]
[331653344,1720605084223,-1153.57,0.00013972,2]
[331653345,1720605084233,-764.39,0.00013972,2]
[331653346,1720605084242,-500.0,0.00013972,2]
[331653347,1720605084252,-500.0,0.00013972,2]
[331653348,1720605084261,-596.42538714,0.00013972,2]
[331653349,1720605084272,-499.21166855,0.00013972,2]
[331653350,1720605084282,-500.0,0.00013972,2]
[331653351,1720605084291,-500.0,0.00013972,2]
[331653352,1720605084300,-1210.27,0.00013972,2]
[331653353,1720605084310,-590.75,0.00013972,2]
[331653354,1720605084320,-500.0,0.00013972,2]
[331653355,1720605084329,-1511.87,0.00013972,2]
[331653356,1720605084339,-500.0,0.00013972,2]
[331653357,1720605084348,-500.0,0.00013972,2]
[331653358,1720605084358,-971.13,0.00013972,2]
[331653359,1720605084367,-1120.01,0.00013972,2]
[331653360,1720605084377,-500.0,0.00013972,2]
[331653361,1720605084386,-787.47,0.00013972,2]
[331653362,1720605084396,-500.0,0.00013972,2]
[331653363,1720605084405,-500.0,0.00013972,2]
[331653364,1720605084415,-500.0,0.00013972,2]
[331653365,1720605084424,-528.69,0.00013972,2]
[331653366,1720605084434,-500.0,0.00013972,2]
[331653367,1720605084443,-789.45,0.00013972,2]
[331653368,1720605084454,-500.0,0.00013972,2]
[331653369,1720605084463,-1000.46,0.00013972,2]
[331653370,1720605084473,-500.0,0.00013972,2]
[331653371,1720605084482,-154.8587672,0.00013972,2]
[331653372,1720605084492,-500.0,0.00013972,2]
[331653373,1720605084503,-1569.65,0.00013972,2]
[331653374,1720605084515,-500.0,0.00013972,2]
[331653375,1720605084525,-616.93,0.00013972,2]
[331653376,1720605084535,-38.08962399,0.00013972,2]
[331653377,1720605084549,-427.8153428,0.00013972,2]
[331653378,1720605084561,-76.39503321,0.00013972,2]
[331653379,1720605084570,-500.0,0.00013972,2]
[331653380,1720605084580,-948.91,0.00013972,2]
[331653381,1720605084589,-500.0,0.00013972,2]
[331653382,1720605084599,-643.36,0.00013972,2]
[331653383,1720605084608,-643.43,0.00013972,2]
[331653384,1720605084617,-500.0,0.00013972,2]
[331653385,1720605084626,-2.08030482,0.00013972,2]
[331653386,1720605084637,-497.91969518,0.00013972,2]
[331653387,1720605084646,-531.02,0.00013972,2]
[331653388,1720605084656,-1049.53207166,0.00013972,2]
[331653389,1720605084668,-327.51792834,0.00013972,2]
[331653390,1720605084678,-500.0,0.00013972,2]
[331653391,1720605084688,-952.15,0.00013972,2]
[331653392,1720605084697,-500.0,0.00013972,2]
[331653393,1720605084707,-503.38,0.00013972,2]
[331653394,1720605084717,-1702.42,0.00013972,2]
[331653395,1720605084727,-1368.23207166,0.00013972,2]
[331653396,1720605084739,-137.95792834,0.00013972,2]
[331653397,1720605084749,-500.0,0.00013972,2]
[331653398,1720605084758,-36.81831812,0.00013972,2]
[331653399,1720605084772,-463.18168188,0.00013972,2]
[331653400,1720605084781,-59.85831812,0.00013972,2]
[331653401,1720605084793,-440.14168188,0.00013972,2]
[331653402,1720605084803,-139.47869812,0.00013972,2]
[331653403,1720605085470,-977.79543901,0.00013499,2]
[331653404,1720605085481,-2125.81515652,0.00013499,2]
[331653405,1720605085491,-160.58690581,0.00013569,2]
[331653406,1720605085501,-151.0,0.00013753,2]
[331653407,1720605085511,-151.0,0.0001379,2]
[331653408,1720605085521,-151.0,0.00013808,2]
[331653409,1720605085531,-151.0,0.00013808,2]
[331653410,1720605085541,-151.0,0.00013863,2]
[331653411,1720605085552,-151.0,0.00013863,2]
[331653412,1720605085562,-151.0,0.00013917,2]
[331653413,1720605085572,-151.0,0.00013966,2]
[331653414,1720605085581,-516.55130188,0.00013972,2]
[331653415,1720605085590,-1039.74,0.00013972,2]
[331653416,1720605085600,-717.52,0.00013972,2]
[331653417,1720605085610,-859.44,0.00013972,2]
[331653418,1720605085619,-500.0,0.00013972,2]
[331653419,1720605085629,-858.09,0.00013972,2]
[331653420,1720605085640,-747.51,0.00013972,2]
[331653421,1720605085651,-500.0,0.00013972,2]
[331653422,1720605085662,-877.95,0.00013972,2]
[331653423,1720605085671,-1001.11,0.00013972,2]
[331653424,1720605085681,-501.85,0.00013972,2]
[331653425,1720605085690,-500.0,0.00013972,2]
[331653426,1720605085700,-500.0,0.00013972,2]
[331653427,1720605085710,-500.0,0.00013972,2]
[331653428,1720605085720,-580.78,0.00013972,2]
[331653429,1720605085730,-805.57,0.00013972,2]